Cogmind - Beta 14 @@@ ROGUE MODE // 2025.03.22 @ 14:15:42 Player: LightKnight Result: Smashed by cave-in Performance ------------- Evolutions (0) 0 Regions Visited (3) 600 Robots Destroyed (15) 75 Value Destroyed (461) 461 Prototype IDs (0) 0 Alien Tech Used (0) 0 Bonus (0) 0 TOTAL SCORE: 1136 Bonus ------- None Cogmind --------- Core Integrity 0/250 Matter 214/300 Energy 125/125 System Corruption 3% Temperature Cool (23) Movement Treading (160) Location -9/Recycling Parts ------- > --- POWER (1) -------- Light Ion Engine > --- PROPULSION (2) --- Light Treads Light Treads > --- UTILITY (2) ------ Small Storage Unit > --- WEAPON (2) ------- (None) > --- INVENTORY (8) ---- Subdweller Power Source Aluminum Leg Aluminum Leg Subdweller Monowheel Subdweller Optics Subdweller Laser Multitool Peak State ------------ > --- POWER ------------ Ion Engine > --- PROPULSION ------- Light Treads Light Treads > --- UTILITY ---------- Small Storage Unit Structural Scanner > --- WEAPON ----------- Subdweller Laser Grenade Launcher > --- INVENTORY -------- Light Ion Engine Subdweller Power Source Aluminum Leg Aluminum Leg Subdweller Monowheel Subdweller Optics Medium Laser Multitool [Rating: 9] Favorites ----------- Power Ion Engine Engine Ion Engine Propulsion Light Treads Treads Light Treads Leg Aluminum Leg Utility Small Storage Unit Device Structural Scanner Storage Small Storage Unit Weapon Medium Laser Energy Gun Medium Laser Ballistic Gun Assault Rifle Launcher Grenade Launcher Build | -11 -10 -10 -9 ------- Run | Yrd Mat Sub Rec Slots Evolved . | . . . . Power . | . . . . Propulsion . | . . . . Utility . | . . . . Weapon . | . . . . Parts Attached 9 | . 3 5 1 Power 1 | . . 1 . Engine 1 | . . 1 . Core . | . . . . Reactor . | . . . . Propulsion 2 | . . 2 . Treads 2 | . . 2 . Leg . | . . . . Wheel . | . . . . Hover . | . . . . Flight . | . . . . Utility 1 | . 1 . . Device 1 | . 1 . . Storage . | . . . . Processor . | . . . . Hackware . | . . . . Protection . | . . . . Artifact . | . . . . Weapon 5 | . 2 2 1 Energy Gun 3 | . 1 2 . Energy Cannon . | . . . . Ballistic Gun . | . . . . Ballistic Cannon . | . . . . Launcher 2 | . 1 . 1 Special Weapon . | . . . . Impact Weapon . | . . . . Slashing Weapon . | . . . . Piercing Weapon . | . . . . Special Melee Weapon . | . . . . Unidentified Prototypes . | . . . . Parts Lost 5 | . . 2 3 Power 1 | . . 1 . Propulsion . | . . . . Utility 1 | . . . 1 Weapon 3 | . . 1 2 Highest Loss Streak 3 | . . 2 3 To Critical Strikes . | . . . . Average Slot Usage (%) 99 | . 98 99 100 Engine 13 | . 14 13 14 Treads 22 | . . 27 28 Leg 5 | . 28 . . Device 13 | . 12 14 14 Storage 14 | . 14 14 14 Energy Gun 14 | . 7 15 24 Ballistic Gun 3 | . 19 . . Launcher 10 | . 1 13 4 Peak Build Rating 9 | . 7 9 9 Average Rating 7 | . 6 7 8 On Entrance 7 | 6 6 7 9 Naked Turns . | . . . . Heaviest Build 18 | 14 16 18 15 Greatest Support 40 | 20 20 40 40 Greatest Overweight (x) . | . . . . Average Overweight (x) . | . . . . Largest Inventory Capacity 8 | . 8 8 8 Average Capacity 8 | . 8 8 8 Most Carried 8 | . 7 8 7 Average Carried 7 | . 6 7 6 Final Capacity 8 | 8 8 8 8 Final Carried 7 | 6 7 6 7 Class Distribution -------------------- 100% | Mutant Dominant Class ---------------- Mutant | -10/Materials Mutant | -10/Subcaves Mutant | -9/Recycling Resources | -11 -10 -10 -9 ----------- Run | Yrd Mat Sub Rec Matter Collected 475 | 200 40 235 . Remotely . | . . . . Salvage Created 311 | . 77 234 . Parts 21 | . 3 18 . Haulers Intercepted . | . . . . Recyclers Shooed . | . . . . Parts Field Recycled . | . . . . Retrieved Matter . | . . . . Parts Self-Destructed 12 | . . 12 . Prevented . | . . . . Kills | -11 -10 -10 -9 ------- Run | Yrd Mat Sub Rec Combat Hostiles Destroyed 13 | . 2 11 . Guns 6 | . 2 4 . AOE 7 | . . 7 . Classes Destroyed 4 | . 1 3 . Turret 2 | . . 2 . Swarmer 4 | . . 4 . Grunt 2 | . 2 . . Subdweller 7 | . . 7 . Best Kill Streak 4 | . 1 4 . Combat Bots Only 4 | . 1 4 . Max Kills in Single Turn 2 | . 1 2 . Gunslinging . | . . . . Exploded 2 | . . 2 . Melee . | . . . . Uniques/NPCs Destroyed . | . . . . Combat | -11 -10 -10 -9 -------- Run | Yrd Mat Sub Rec Hostile Shots Fired 104 | . 20 76 8 Missed 42 | . 4 36 2 Damage Taken 1002 | . 235 452 315 Core 303 | . 98 118 87 Absorbed by Shields . | . . . . Core Remaining (%) 100 | 100 . . . Volleys Fired 52 | . 15 35 2 Largest 2 | . 2 2 2 Hottest 110 | . 70 110 83 Shots Fired 100 | . 29 67 4 Gun 76 | . 28 46 2 Cannon . | . . . . Launcher 24 | . 1 21 2 Special . | . . . . Kinetic 18 | . 18 . . Thermal 58 | . 10 46 2 Explosive 24 | . 1 21 2 Electromagnetic . | . . . . Robot Hit Streak 14 | . 10 14 3 Robot Miss Streak 2 | . 2 2 1 Penetration Max . | . . . . Secondary Targets . | . . . . Shots Hit Robots 64 | . 19 44 1 Core Hits 34 | . 5 28 1 Critical Kills 1 | . 1 . . Critical Parts Destroyed . | . . . . Critical Strikes 4 | . 3 1 . Burn 3 | . 2 1 . Destroy 1 | . 1 . . Melee Attacks . | . . . . Impact . | . . . . Slashing . | . . . . Piercing . | . . . . Sneak Attacks . | . . . . Combat Hostiles . | . . . . Follow-up Attacks . | . . . . Damage Inflicted 1683 | . 257 1383 43 Guns 810 | . 257 541 12 Cannons . | . . . . Explosions 873 | . . 842 31 Melee . | . . . . Ramming . | . . . . Kinetic 169 | . 169 . . Thermal 641 | . 88 541 12 Explosive 873 | . . 842 31 Electromagnetic . | . . . . Impact . | . . . . Slashing . | . . . . Piercing . | . . . . Highest Corruption . | . . . . Average Corruption . | . . . . Corruption Purged . | . . . . Corruption Blocked . | . . . . Overload Shots . | . . . . Overflow Damage . | . . . . Projectiles . | . . . . Explosions . | . . . . Melee . | . . . . Knockbacks . | . . . . Impact . | . . . . Kinetic . | . . . . Secondary . | . . . . Self-Inflicted Damage 56 | . . 17 39 Shots 2 | . . 1 1 Rammed . | . . . . Targets Rammed . | . . . . Kicked . | . . . . Crushed . | . . . . Highest Temperature 213 | . 213 12 23 Average Temperature 72 | . 95 5 14 Received Heat Transfer 294 | . 156 120 18 Siege Activations . | . . . . Robots Corrupted . | . . . . Combat Hostiles . | . . . . Parts Fried . | . . . . Impact Corruptions . | . . . . Robots Melted . | . . . . Combat Hostiles . | . . . . Parts Melted . | . . . . Heat Transferred 1449 | . 407 1005 37 Parts Sabotaged . | . . . . Parts Stolen . | . . . . Parts Stripped . | . . . . Power Chain Reactions . | . . . . Alert | -11 -10 -10 -9 ------- Run | Yrd Mat Sub Rec Peak Influence 83 | . 74 . 83 Initial 76 | . . . 76 Average 38 | . 27 . 77 Maximum Alert Level . | . . . . Low Security (%) 100 | . 100 . 100 Level 1 . | . . . . Level 2 . | . . . . Level 3 . | . . . . Level 4 . | . . . . Level 5 . | . . . . High Security . | . . . . Max Security . | . . . . Squads Dispatched . | . . . . Investigation . | . . . . Extermination . | . . . . Reinforcement . | . . . . Assault . | . . . . Garrison . | . . . . Intercept . | . . . . Searches Triggered . | . . . . Construction Impeded . | . . . . Haulers Reinforced . | . . . . Active Scanning Responses . | . . . . Cargo Convoy Interrupts . | . . . . Stealth | -11 -10 -10 -9 --------- Run | Yrd Mat Sub Rec Distress Signals . | . . . . Communications Jammed . | . . . . Distress Signals . | . . . . Times Spotted 25 | . 7 16 2 Peak Tracking Total 6 | . 2 6 2 Tactical Retreats 2 | . . 2 . Traps | -11 -10 -10 -9 ------- Run | Yrd Mat Sub Rec Traps Triggered . | . . . . Indirectly . | . . . . Trap Hack Attempts . | . . . . Triggered . | . . . . Disarmed . | . . . . Reprogrammed . | . . . . Reused . | . . . . Traps Extracted . | . . . . Installed . | . . . . Triggered 3 | . . 3 . Machines | -11 -10 -10 -9 ---------- Run | Yrd Mat Sub Rec Machines Disabled 3 | . . 3 . Max in Single Turn 3 | . . 3 . Machines Repaired . | . . . . Machines Dismantled . | . . . . Machines Sabotaged . | . . . . Overloaded Fab Kills . | . . . . Hacking | -11 -10 -10 -9 --------- Run | Yrd Mat Sub Rec Machines Accessed 1 | . 1 . . Terminals 1 | . 1 . . Fabricators . | . . . . Repair Stations . | . . . . Recycling Units . | . . . . Scanalyzers . | . . . . Garrison Access . | . . . . Total Hacks 2 | . 2 . . Successful 1 | . 1 . . Failed 1 | . 1 . . Catastrophic 1 | . 1 . . Database Lockouts . | . . . . Manual 2 | . 2 . . Terminals 2 | . 2 . . Fabricators . | . . . . Repair Stations . | . . . . Recycling Units . | . . . . Scanalyzers . | . . . . Garrison Access . | . . . . Terminal Hacks . | . . . . Fabricator Hacks . | . . . . Repair Station Hacks . | . . . . Recycling Unit Hacks . | . . . . Scanalyzer . | . . . . Garrison Access Hacks . | . . . . Unauthorized Hacks 1 | . 1 . . Terminals 1 | . 1 . . Botnet 1 | . 1 . . Fabricators . | . . . . Repair Stations . | . . . . Recycling Units . | . . . . Scanalyzers . | . . . . Garrison Access . | . . . . Data Cores Recovered . | . . . . Used . | . . . . Hacking Detections 1 | . 1 . . Full Trace Events . | . . . . Feedback Events . | . . . . Feedback Blocked . | . . . . Robot Schematics Acquired . | . . . . Robots Built . | . . . . Authchips . | . . . . Time . | . . . . Total Robot Build Rating . | . . . . Part Schematics Acquired . | . . . . Parts Built . | . . . . Authchips . | . . . . Time . | . . . . Total Part Build Rating . | . . . . Parts Repaired . | . . . . Time . | . . . . Parts Recycled . | . . . . Recycled Matter . | . . . . Retrieved Matter . | . . . . Retrieved Components . | . . . . Parts Scanalyzed . | . . . . Part Schematics Acquired . | . . . . Parts Damaged . | . . . . Bothacking | -11 -10 -10 -9 ------------ Run | Yrd Mat Sub Rec Used RIF Installer . | . . . . Robots Hacked . | . . . . Non-combat . | . . . . Combat . | . . . . Robot Hacks Applied . | . . . . Relay Couplers Released . | . . . . Fabnet Peak Effective % . | . . . . Robots Rewired . | . . . . Allies Hacked . | . . . . Hacks Repelled . | . . . . Allies | -11 -10 -10 -9 -------- Run | Yrd Mat Sub Rec Total Allies . | . . . . Largest Group . | . . . . Highest-Rated Group . | . . . . Highest-Rated Ally . | . . . . Total Orders . | . . . . Ally Attacks . | . . . . Total Damage . | . . . . Kills . | . . . . Allies Corrupted . | . . . . Allies Melted . | . . . . Intel | -11 -10 -10 -9 ------- Run | Yrd Mat Sub Rec Robot Analysis Total . | . . . . Derelict Logs Recovered 2 | . . 2 . Drone Launches . | . . . . Drone Recoveries . | . . . . Exploration | -11 -10 -10 -9 ------------- Run | Yrd Mat Sub Rec Turns Passed 1446 | . 258 1117 71 Spaces Moved 831 | 1 165 626 39 Core . | . . . . Treads 653 | . . 614 39 Legs 178 | 1 165 12 . Wheels . | . . . . Hover . | . . . . Flight . | . . . . Fastest Speed 120 | 120 120 120 160 Average Speed 151 | 120 120 159 160 Slowest Speed 160 | 120 120 160 160 Overloaded Moves . | . . . . Propulsion Burnouts . | . . . . Robots Hopped . | . . . . Cave-ins Triggered 1 | . . . 1 Exploration Rate (%) 20 | 2 34 40 7 Regions Visited 3 Branch Regions 2 Pre-discovered Areas . | . . . . Known Exits Taken . | . . . . Unknown Exits Taken 3 | 1 1 1 . Scrap Searched . | . . . . Spaces Dug 7 | . . . 7 Terrain Destroyed 108 | . 8 87 13 Melee . | . . . . Projectile . | . . . . AOE 108 | . 8 87 13 Terrain Rammed . | . . . . Walls Destroyed . | . . . . Machines Disabled . | . . . . Actions | -11 -10 -10 -9 --------- Run | Yrd Mat Sub Rec Total 921 | . 194 682 45 Wait 18 | . 11 7 . Move 828 | . 164 625 39 Hop . | . . . . Pick Up 6 | . 1 4 1 Fast Attach 2 | . 1 1 . Attach 4 | . . 4 . Detach 2 | . . 2 . Swap 3 | . 2 . 1 Drop 4 | . . 4 . Fire 52 | . 15 35 2 Melee . | . . . . Ram . | . . . . Kick . | . . . . Crush . | . . . . Escape Stasis . | . . . . Rewire 2 | . . . 2 Trap . | . . . . Miscellaneous . | . . . . Route ------- -11/Scrapyard -10/Materials (discovered 2 exits: [*Mat] / [*Sub]) -10/Subcaves -9/Recycling History --------- Turn | Location | Event 1 | -11/Scrapyard | Discovered new exit (range 0) 1 | -11/Scrapyard | Entered Materials 123 | -10/Materials | Discovered new exit (range 15) 194 | -10/Materials | Discovered new exit (range 15) 259 | -10/Materials | Entered Subcaves 263 | -10/Subcaves | Learned Materials non-interactive machine intel 267 | -10/Subcaves | Learned Materials emergency access door positions 316 | -10/Subcaves | Build established: Mutant 560 | -10/Subcaves | A swath of the cavern ceiling suddenly collapsed 1227 | -10/Subcaves | Core integrity fell below 50% 1291 | -10/Subcaves | Discovered new exit (range 12) 1336 | -10/Subcaves | Core integrity fell below 20% 1376 | -10/Subcaves | Entered Recycling 1448 | -9/Recycling | Crushed by falling debris 1448 | -9/Recycling | Smashed by cave-in Last Messages --------------- 01328_ Acquired 24 matter. 01338_ Autobeam Turret destroyed. 01351_ Destroyed Autobeam. 01357_ Autobeam Turret destroyed. 01370_ Acquired 13 matter. LOCATION=UNKNOWN GOAL=ESCAPE 01407_ Acquired Rocket Launcher. 01439_ Y-45 Defender springs to life. 01443_ Attempting to rewire R-06 Scavenger. 01443_ R-06 Scavenger is unpowered. 01444_ Attempting to rewire R-06 Scavenger. 01444_ R-06 Scavenger is unpowered. 01446_ Rocket Launcher destroyed. 01447_ The unstable cave ceiling collapses. 01448_ Crushed by falling debris. 01448_ Structural Scanner destroyed. 01448_ System corrupted by crushing effect (+2). 01448_ Med. Laser destroyed. 01448_ System corrupted by crushing effect (+1). Map ----- +----------------------------------------------------+ | ?????????????????????????????????????????????????? | | ?????????????????????????????????????????????????? | | ?????????????????????????????????????????????????? | | ?????????????????????????????????????????????????? | | ?????????????????????????????????????????????????? | | ?????????????????????????????????????????????????? | | ?????????????????????????????????????????????????? | | ?????????????????????????????????????????????????? | | ?????????????????????????????????????????????????? | | ?????????????????????????????????????????????????? | | ?????????????????????????????????????????????????? | | ?????????????????????????????????????????????????? | | ?????????????????????????????????????????????????? | | ?????????????????????????????????????????????????? | | ?????????????????????????????????????????????????? | | ?????????????????????????????????????????????????? | | ?????????????????????????????????????????????????? | | ?????????????????????????????????????????????????? | | ??????????????????????## ????????????????????????? | | ??????????????????????## ????????????????????????? | | ??????????????????????## ????????????????????????? | | ??????????????????????## ????????????????????????? | | ???#############??????## #???????????????? | | ???#############?????###r#########???????????????? | | #####"""###]] ########## [[[####?????????????? | | #####"Y"###] ]######### @# [[# ##?????????????? | | Y ?????????? | | T ?????????? | | Y ?????????? | | ###"Y"#########"Y"###### #"Y" ##### ?????????? | | ###"""#########"""########"""########????????????? | | ?#######?????#######??###########????????????????? | | ?#######?????#######?????######??????????????????? | | ?????????????????????????????????????????????????? | | ?????????????????????????????????????????????????? | | ?????????????????????????????????????????????????? | | | | | | | | | | | | | | | | | | | | | | | | | | | | | +----------------------------------------------------+ Best States ------------- Heat Dissipation 25 Energy Generation 10 Energy Capacity 250 Matter Stores 300 Matter Capacity 300 Sight Range 16 Terrain Scan Density 10 Evasion (%) 55 Recoil Reduction 2 Item Schematics ----------------- None Robot Schematics ------------------ None Fabricated ------------ Nothing Alien Tech Used ----------------- None Achievements -------------- None Challenges ------------ None Game ------ Seed SupersonicZhirovTearclaws Manual? 0 Play Time 00:08:57 Cumulative 210.9 hours Start 2025.03.22 @ 14:06:59 End 2025.03.22 @ 14:15:42 Sessions 1 Manual Loads 0 Difficulty Rogue Special Mode None Game No. 152 Rogue 152 Adventurer 0 Explorer 0 Win Type - Total 13 Types 12/0/0/1/0/0/0/0/0 Lore% 81 Gallery% 70 Achievement% 57 Wizard Run 0 Options --------- Layout 2 ASCII 1 Keyboard 1 Movement Arrows Keybinds 0 Fullscreen 1 Font 24/Proggy Map View 50x44 Zoom Use 0% Tactical HUD 1 Map Filters NONE Filters NONE Steam 1 RUN: e2714ef8-cac0-4257-ad94-22a55097ee16